fUSD/lending_fUSD_20250305
["ID","MTS","AMOUNT","RATE_DAILY","PERIOD"]
[355435415,1741149053437,-906.02,0.00012222,2]
[355435416,1741149053448,-1635.45,0.00012222,2]
[355435417,1741149053458,-1226.29,0.00012222,2]
[355435418,1741149053468,-1773.27,0.00012222,2]
[355435419,1741149053478,-5752.23,0.00012222,2]
[355435420,1741149053488,-2869.33,0.00012222,2]
[355435421,1741149053499,-3112.92,0.00012222,2]
[355435422,1741149053510,-153.1498,0.00012222,2]
[355435423,1741149053741,-1198.53,0.00012222,2]
[355435424,1741149053753,-2445.98,0.00012222,2]
[355435425,1741149053763,-3877.46,0.00012222,2]
[355435426,1741149053772,-4065.63,0.00012222,2]
[355435427,1741149053782,-7095.61,0.00012222,2]
[355435428,1741149053791,-3293.34,0.00012222,2]
[355435429,1741149053801,-12185.42,0.00012222,2]
[355435430,1741149053811,-2463.29,0.00012222,2]
[355435431,1741149053820,-3493.24,0.00012222,2]
[355435432,1741149053830,-850.85,0.00012222,2]
[355435433,1741149053839,-386.56044818,0.00012222,2]
[355435434,1741149053849,-6499.89,0.00012222,2]
[355435435,1741149053858,-4262.66,0.00012222,2]
[355435436,1741149053868,-1957.33,0.00012222,2]
[355435437,1741149053877,-4124.61,0.00012222,2]
[355435438,1741149053887,-4547.97,0.00012222,2]
[355435439,1741149053896,-2995.52,0.00012222,2]
[355435440,1741149053905,-4799.13,0.00012222,2]
[355435441,1741149053915,-500.0,0.00012222,2]
[355435442,1741149053925,-6227.59,0.00012222,2]
[355435443,1741149053934,-4445.24,0.00012222,2]
[355435444,1741149053944,-500.0,0.00012222,2]
[355435445,1741149053953,-4566.34,0.00012222,2]
[355435446,1741149053962,-1312.49,0.00012222,2]
[355435447,1741149053972,-3147.79,0.00012222,2]
[355435448,1741149053981,-7318.33,0.00012222,2]
[355435449,1741149053990,-2575.28,0.00012222,2]
[355435450,1741149054000,-500.0,0.00012222,2]
[355435451,1741149054010,-9256.73,0.00012222,2]
[355435452,1741149054020,-1300.3,0.00012222,2]
[355435453,1741149054029,-500.0,0.00012222,2]
[355435454,1741149054038,-4094.44,0.00012222,2]
[355435455,1741149054048,-8053.85,0.00012222,2]
[355435456,1741149054057,-5484.87,0.00012222,2]
[355435457,1741149054067,-4264.78,0.00012222,2]
[355435458,1741149054077,-4037.24,0.00012222,2]
[355435459,1741149054086,-2900.18,0.00012222,2]
[355435460,1741149054095,-2321.53,0.00012222,2]
[355435461,1741149054105,-17958.26,0.00012222,2]
[355435462,1741149054115,-5631.12,0.00012222,2]
[355435463,1741149054125,-39634.54,0.00012222,2]
[355435464,1741149054136,-1611.1,0.00012222,2]
[355435465,1741149054146,-2987.84,0.00012222,2]
[355435466,1741149054156,-1553.53,0.00012222,2]
[355435467,1741149054165,-2575.93,0.00012222,2]
[355435468,1741149054174,-867.4,0.00012223,2]
[355435469,1741149054183,-500.0,0.00012223,2]
[355435470,1741149054193,-500.0,0.00012223,2]
[355435471,1741149054204,-500.0,0.00012223,2]
[355435472,1741149054213,-981.15,0.00012223,2]
[355435473,1741149054223,-500.0,0.00012223,2]
[355435474,1741149054232,-500.0,0.00012223,2]
[355435475,1741149054242,-500.0,0.00012223,2]
[355435476,1741149054252,-500.0,0.00012223,2]
[355435477,1741149054262,-756.37,0.00012223,2]
[355435478,1741149054272,-500.0,0.00012223,2]
[355435479,1741149054281,-500.0,0.00012223,2]
[355435480,1741149054290,-546.57,0.00012223,2]
[355435481,1741149054300,-261.85194274,0.00012223,2]
[355435482,1741149054310,-1117.74,0.00012223,2]
[355435483,1741149054319,-500.0,0.00012223,2]
[355435484,1741149054329,-500.0,0.00012223,2]
[355435485,1741149054340,-500.0,0.00012223,2]
[355435486,1741149054352,-500.0,0.00012223,2]
[355435487,1741149054361,-500.0,0.00012223,2]
[355435488,1741149054370,-500.0,0.00012223,2]
[355435489,1741149054380,-500.0,0.00012223,2]
[355435490,1741149054391,-538.22254368,0.00012223,2]
[355435491,1741149054400,-500.0,0.00012223,2]
[355435492,1741149054410,-500.0,0.00012223,2]
[355435493,1741149054419,-500.0,0.00012223,2]
[355435494,1741149054429,-500.0,0.00012223,2]
[355435495,1741149054440,-500.0,0.00012223,2]
[355435496,1741149054449,-500.0,0.00012223,2]
[355435497,1741149054459,-500.0,0.00012223,2]
[355435498,1741149054468,-1006.11,0.00012223,2]
[355435499,1741149054478,-500.0,0.00012223,2]
[355435500,1741149054488,-500.0,0.00012223,2]
[355435501,1741149054498,-612.82818306,0.00012223,2]
[355435502,1741149054508,-500.0,0.00012223,2]
[355435503,1741149054518,-752.77,0.00012223,2]
[355435504,1741149054528,-500.0,0.00012223,2]
[355435505,1741149054538,-873.82,0.00012223,2]
[355435506,1741149054547,-500.0,0.00012223,2]
[355435507,1741149054556,-502.39652249,0.00012223,2]
[355435508,1741149054567,-509.64249537,0.00012223,2]
[355435509,1741149054577,-500.0,0.00012223,2]
[355435510,1741149054586,-500.0,0.00012223,2]
[355435511,1741149054595,-500.0,0.00012223,2]
[355435512,1741149054605,-500.0,0.00012223,2]
[355435513,1741149054615,-500.0,0.00012223,2]
[355435514,1741149054624,-809.03,0.00012223,2]
[355435515,1741149054634,-500.0,0.00012223,2]
[355435516,1741149054643,-689.61,0.00012223,2]
[355435517,1741149054652,-500.0,0.00012223,2]
[355435518,1741149054662,-500.0,0.00012223,2]
[355435519,1741149054671,-990.95,0.00012223,2]
[355435520,1741149054681,-583.37,0.00012223,2]
[355435521,1741149054690,-1193.25,0.00012223,2]
[355435522,1741149054700,-500.0,0.00012223,2]
[355435523,1741149054710,-500.0,0.00012223,2]
[355435524,1741149054719,-506.4630735,0.00012223,2]
[355435525,1741149054728,-500.0,0.00012223,2]
[355435526,1741149054738,-1166.59,0.00012223,2]
[355435527,1741149054749,-500.0,0.00012223,2]
[355435528,1741149054760,-500.0,0.00012223,2]
[355435529,1741149054770,-500.0,0.00012223,2]
[355435530,1741149054782,-500.0,0.00012223,2]
[355435531,1741149054793,-500.0,0.00012223,2]
[355435532,1741149054802,-500.0,0.00012223,2]
[355435533,1741149054812,-641.96,0.00012223,2]
[355435534,1741149054823,-500.0,0.00012223,2]
[355435535,1741149054834,-500.0,0.00012223,2]
[355435536,1741149054843,-1116.05,0.00012223,2]
[355435537,1741149054855,-500.0,0.00012223,2]
[355435538,1741149054864,-231.93749737,0.00012223,2]
[355435539,1741149054874,-500.0,0.00012223,2]
[355435540,1741149054884,-163.00202606,0.00012223,2]
[355435541,1741149054893,-500.0,0.00012223,2]
[355435542,1741149054902,-500.0,0.00012223,2]
[355435543,1741149054912,-500.0,0.00012223,2]
[355435544,1741149054921,-500.0,0.00012223,2]
[355435545,1741149054931,-500.0,0.00012223,2]
[355435546,1741149054940,-515.39438268,0.00012223,2]
[355435547,1741149054950,-500.0,0.00012223,2]
[355435548,1741149054960,-676.38,0.00012223,2]
[355435549,1741149054970,-500.0,0.00012223,2]
[355435550,1741149054979,-500.0,0.00012223,2]
[355435551,1741149054989,-500.0,0.00012223,2]
[355435552,1741149054999,-500.0,0.00012223,2]
[355435553,1741149055009,-832.5,0.00012223,2]
[355435554,1741149055019,-903.56,0.00012223,2]
[355435555,1741149055028,-864.83,0.00012223,2]
[355435556,1741149055038,-686.93,0.00012223,2]
[355435557,1741149055048,-500.0,0.00012223,2]
[355435558,1741149055057,-1005.93,0.00012223,2]
[355435559,1741149055067,-500.0,0.00012223,2]
[355435560,1741149055077,-500.0,0.00012223,2]
[355435561,1741149055086,-500.0,0.00012223,2]
[355435562,1741149055095,-500.0,0.00012223,2]
[355435563,1741149055105,-500.0,0.00012223,2]
[355435564,1741149055114,-500.0,0.00012223,2]
[355435565,1741149055124,-500.0,0.00012223,2]
[355435566,1741149055133,-548.18,0.00012223,2]
[355435567,1741149055143,-500.0,0.00012223,2]
[355435568,1741149055152,-500.0,0.00012223,2]
[355435569,1741149055162,-500.0,0.00012223,2]
[355435570,1741149055171,-988.34,0.00012223,2]
[355435571,1741149055181,-507.05731504,0.00012223,2]
[355435572,1741149055190,-500.0,0.00012223,2]
[355435573,1741149055199,-500.0,0.00012223,2]
[355435574,1741149055209,-500.0,0.00012223,2]
[355435575,1741149055218,-500.0,0.00012223,2]
[355435576,1741149055228,-1334.12,0.00012223,2]
[355435577,1741149055237,-500.0,0.00012223,2]
[355435578,1741149055247,-500.0,0.00012223,2]
[355435579,1741149055257,-500.0,0.00012223,2]
[355435580,1741149055267,-500.0,0.00012223,2]
[355435581,1741149055276,-500.0,0.00012223,2]
[355435582,1741149055286,-500.0,0.00012223,2]
[355435583,1741149055295,-481.37941999,0.00012223,2]
[355435584,1741149055305,-849.06,0.00012223,2]
[355435585,1741149055315,-500.0,0.00012223,2]
[355435586,1741149055325,-500.0,0.00012223,2]
[355435587,1741149055335,-500.0,0.00012223,2]
[355435588,1741149055350,-1870.83,0.00012223,2]
[355435589,1741149055359,-500.0,0.00012223,2]
[355435590,1741149055369,-1263.77,0.00012223,2]
[355435591,1741149055379,-500.0,0.00012223,2]
[355435592,1741149055389,-500.0,0.00012223,2]
[355435593,1741149055398,-500.0,0.00012223,2]
[355435594,1741149055408,-1898.31,0.00012223,2]
[355435595,1741149055418,-500.0,0.00012223,2]
[355435596,1741149055428,-1107.44,0.00012223,2]
[355435597,1741149055437,-370.87641368,0.00012223,2]
[355435598,1741149055447,-1090.82,0.00012223,2]
[355435599,1741149055456,-500.0,0.00012223,2]
[355435600,1741149055466,-500.0,0.00012223,2]
[355435601,1741149055475,-1101.63,0.00012223,2]
[355435602,1741149055484,-500.0,0.00012223,2]
[355435603,1741149055493,-500.0,0.00012223,2]
[355435604,1741149055504,-1013.55,0.00012223,2]
[355435605,1741149055514,-500.0,0.00012223,2]
[355435606,1741149055524,-500.0,0.00012223,2]
[355435607,1741149055533,-500.0,0.00012223,2]
[355435608,1741149055542,-888.07,0.00012223,2]
[355435609,1741149055551,-500.0,0.00012223,2]
[355435610,1741149055561,-1061.35,0.00012223,2]
[355435611,1741149055571,-1136.4,0.00012223,2]
[355435612,1741149055580,-983.23,0.00012223,2]
[355435613,1741149055589,-620.57616573,0.00012223,2]
[355435614,1741149055598,-500.0,0.00012223,2]
[355435615,1741149055612,-520.55986358,0.00012223,2]
[355435616,1741149055627,-500.0,0.00012223,2]
[355435617,1741149055641,-1759.95,0.00012223,2]
[355435618,1741149055655,-634.65870971,0.00012223,2]
[355435619,1741149055670,-500.0,0.00012223,2]
[355435620,1741149055685,-500.0,0.00012223,2]
[355435621,1741149055700,-500.0,0.00012223,2]
[355435622,1741149055714,-500.0,0.00012223,2]
[355435623,1741149055726,-532.51786963,0.00012223,2]
[355435624,1741149055740,-500.0,0.00012223,2]
[355435625,1741149055755,-272.62973018,0.00012223,2]
[355435626,1741149055769,-500.0,0.00012223,2]
[355435627,1741149055783,-1504.29,0.00012223,2]
[355435628,1741149055797,-884.96,0.00012223,2]
[355435629,1741149055813,-500.0,0.00012223,2]
[355435630,1741149055827,-500.0,0.00012223,2]
[355435631,1741149055840,-500.0,0.00012223,2]
[355435632,1741149055853,-1010.51,0.00012223,2]
[355435633,1741149055868,-572.35,0.00012223,2]
[355435634,1741149055881,-579.81600793,0.00012223,2]
[355435635,1741149055894,-500.0,0.00012223,2]
[355435636,1741149055905,-500.0,0.00012223,2]
[355435637,1741149055919,-595.33,0.00012223,2]
[355435638,1741149055934,-500.0,0.00012223,2]
[355435639,1741149055944,-1391.56,0.00012223,2]
[355435640,1741149055956,-500.0,0.00012223,2]
[355435641,1741149055971,-500.0,0.00012223,2]
[355435642,1741149055984,-500.0,0.00012223,2]
[355435643,1741149055996,-557.74068546,0.00012223,2]
[355435644,1741149056009,-1235.28,0.00012223,2]
[355435645,1741149056021,-500.0,0.00012223,2]
[355435646,1741149056034,-1082.99,0.00012223,2]
[355435647,1741149056047,-1922.09,0.00012223,2]
[355435648,1741149056060,-500.0,0.00012223,2]
[355435649,1741149056073,-500.0,0.00012223,2]
[355435650,1741149056086,-500.0,0.00012223,2]
[355435651,1741149056098,-500.0,0.00012223,2]
[355435652,1741149056111,-500.0,0.00012223,2]
[355435653,1741149056123,-500.0,0.00012223,2]
[355435654,1741149056137,-1002.46,0.00012223,2]
[355435655,1741149056149,-1131.54,0.00012223,2]
[355435656,1741149056162,-500.0,0.00012223,2]
[355435657,1741149056175,-1172.68,0.00012223,2]
[355435658,1741149056187,-500.0,0.00012223,2]
[355435659,1741149056200,-221.56719525,0.00012223,2]
[355435660,1741149056212,-500.0,0.00012223,2]
[355435661,1741149056225,-1075.9,0.00012223,2]
[355435662,1741149056238,-500.0,0.00012223,2]
[355435663,1741149056251,-500.0,0.00012223,2]
[355435664,1741149056264,-500.0,0.00012223,2]
[355435665,1741149056277,-875.03,0.00012223,2]
[355435666,1741149056290,-500.0,0.00012223,2]
[355435667,1741149056303,-500.0,0.00012223,2]
[355435668,1741149056316,-2240.17,0.00012223,2]
[355435669,1741149056329,-1345.39,0.00012223,2]
[355435670,1741149056344,-500.0,0.00012223,2]
[355435671,1741149056356,-1055.38,0.00012223,2]
[355435672,1741149056370,-500.0,0.00012223,2]
[355435673,1741149056392,-285.54466317,0.00012223,2]
[355435674,1741149056405,-500.0,0.00012223,2]
[355435675,1741149056423,-500.0,0.00012223,2]
[355435676,1741149056436,-930.63,0.00012223,2]
[355435677,1741149056448,-500.0,0.00012223,2]
[355435678,1741149056461,-500.0,0.00012223,2]
[355435679,1741149056474,-500.0,0.00012223,2]
[355435680,1741149056487,-500.0,0.00012223,2]
[355435681,1741149056499,-500.0,0.00012223,2]
[355435682,1741149056514,-803.24,0.00012223,2]
[355435683,1741149056526,-500.0,0.00012223,2]
[355435684,1741149056539,-1164.83,0.00012223,2]
[355435685,1741149056551,-500.0,0.00012223,2]
[355435686,1741149056563,-801.72,0.00012223,2]
[355435687,1741149056575,-500.0,0.00012223,2]
[355435688,1741149056587,-1982.08,0.00012223,2]
[355435689,1741149056600,-822.78,0.00012223,2]
[355435690,1741149056614,-500.0,0.00012223,2]
[355435691,1741149056626,-500.0,0.00012223,2]
[355435692,1741149056639,-619.76744767,0.00012223,2]
[355435693,1741149056651,-500.0,0.00012223,2]
[355435694,1741149056663,-500.0,0.00012223,2]
[355435695,1741149056675,-500.0,0.00012223,2]
[355435696,1741149056688,-2503.63,0.00012223,2]
[355435697,1741149056700,-1211.94,0.00012223,2]
[355435698,1741149056713,-1076.18,0.00012223,2]
[355435699,1741149056725,-1634.59,0.00012223,2]
[355435700,1741149056738,-500.0,0.00012223,2]
[355435701,1741149056751,-1039.1,0.00012223,2]
[355435702,1741149056766,-500.0,0.00012223,2]
[355435703,1741149056779,-500.0,0.00012223,2]
[355435704,1741149056793,-791.74,0.00012223,2]
[355435705,1741149056805,-500.0,0.00012223,2]
[355435706,1741149056819,-3125.1,0.00012223,2]
[355435707,1741149056832,-230.62358014,0.00012223,2]
[355435708,1741149056845,-1048.72,0.00012223,2]
[355435709,1741149056858,-500.0,0.00012223,2]
[355435710,1741149056870,-500.0,0.00012223,2]
[355435711,1741149056883,-500.0,0.00012223,2]
[355435712,1741149056895,-1853.35,0.00012223,2]
[355435713,1741149056908,-1537.22,0.00012223,2]
[355435714,1741149056921,-500.0,0.00012223,2]
[355435715,1741149056933,-1322.26,0.00012223,2]
[355435716,1741149056945,-1114.23,0.00012223,2]
[355435717,1741149056957,-204.28,0.00012223,2]
[355435718,1741149056969,-500.0,0.00012223,2]
[355435719,1741149056982,-989.87,0.00012223,2]
[355435720,1741149056993,-500.0,0.00012223,2]
[355435721,1741149057007,-500.0,0.00012223,2]
[355435722,1741149057019,-500.0,0.00012223,2]
[355435723,1741149057032,-500.0,0.00012223,2]
[355435724,1741149057044,-1452.48,0.00012223,2]
[355435725,1741149057057,-500.0,0.00012223,2]
[355435726,1741149057069,-500.0,0.00012223,2]
[355435727,1741149057082,-500.0,0.00012223,2]
[355435728,1741149057094,-11949.55,0.00012223,2]
[355435729,1741149057106,-500.0,0.00012223,2]
[355435730,1741149057118,-500.0,0.00012223,2]
[355435731,1741149057130,-743.44,0.00012223,2]
[355435732,1741149057142,-500.0,0.00012223,2]
[355435733,1741149057154,-500.0,0.00012223,2]
[355435734,1741149057167,-1886.1,0.00012223,2]
[355435735,1741149057180,-511.04799128,0.00012223,2]
[355435736,1741149057191,-224.62918891,0.00012223,2]
[355435737,1741149057203,-1164.0,0.00012223,2]
[355435738,1741149057216,-1448.4,0.00012223,2]
[355435739,1741149057228,-2499.94,0.00012223,2]
[355435740,1741149057241,-1549.89,0.00012223,2]
[355435741,1741149057253,-894.7,0.00012223,2]
[355435742,1741149057265,-500.0,0.00012223,2]
[355435743,1741149057278,-500.0,0.00012223,2]
[355435744,1741149057290,-500.0,0.00012223,2]
[355435745,1741149057302,-944.22,0.00012223,2]
[355435746,1741149057314,-500.0,0.00012223,2]
[355435747,1741149057327,-603.3868661,0.00012223,2]
[355435748,1741149057341,-897.64,0.00012223,2]
[355435749,1741149057354,-526.90736749,0.00012223,2]
[355435750,1741149057367,-870.99,0.00012223,2]
[355435751,1741149057387,-2135.65,0.00012223,2]
[355435752,1741149057399,-910.75,0.00012223,2]
[355435753,1741149057411,-2705.42,0.00012223,2]
[355435754,1741149057426,-1026.82,0.00012223,2]
[355435755,1741149057440,-679.85,0.00012223,2]
[355435756,1741149057452,-762.26,0.00012223,2]
[355435757,1741149057464,-4641.18,0.00012223,2]
[355435758,1741149057476,-2911.67,0.00012223,2]
[355435759,1741149057488,-500.0,0.00012223,2]
[355435760,1741149057500,-500.0,0.00012223,2]
[355435761,1741149057512,-500.0,0.00012223,2]
[355435762,1741149057524,-3201.41,0.00012223,2]
[355435763,1741149057537,-511.18381654,0.00012223,2]
[355435764,1741149057549,-1072.81,0.00012223,2]
[355435765,1741149057561,-4184.96,0.00012223,2]
[355435766,1741149057573,-836.21,0.00012223,2]
[355435767,1741149057585,-500.0,0.00012223,2]
[355435768,1741149057597,-2891.94,0.00012223,2]
[355435769,1741149057610,-500.0,0.00012223,2]
[355435770,1741149057624,-500.0,0.00012223,2]
[355435771,1741149057636,-500.0,0.00012223,2]
[355435772,1741149057649,-1611.2,0.00012223,2]
[355435773,1741149057660,-500.0,0.00012223,2]
[355435774,1741149057673,-1979.12,0.00012223,2]
[355435775,1741149057686,-553.68,0.00012223,2]
[355435776,1741149057698,-500.0,0.00012223,2]
[355435777,1741149057710,-2520.58,0.00012223,2]
[355435778,1741149057723,-500.0,0.00012223,2]
[355435779,1741149057735,-1485.7,0.00012223,2]
[355435780,1741149057747,-500.0,0.00012223,2]
[355435781,1741149057759,-500.0,0.00012223,2]
[355435782,1741149057771,-2220.43,0.00012223,2]
[355435783,1741149057782,-3436.37,0.00012223,2]
[355435784,1741149057794,-539.2492673,0.00012223,2]
[355435785,1741149057805,-3902.9,0.00012223,2]
[355435786,1741149057817,-863.48,0.00012223,2]
[355435787,1741149057827,-500.0,0.00012223,2]
[355435788,1741149057839,-1381.1,0.00012223,2]
[355435789,1741149057850,-9008.66,0.00012223,2]
[355435790,1741149057862,-500.0,0.00012223,2]
[355435791,1741149057873,-1298.47,0.00012223,2]
[355435792,1741149057884,-1372.44,0.00012223,2]
[355435793,1741149057895,-500.0,0.00012223,2]
[355435794,1741149057907,-500.0,0.00012223,2]
[355435795,1741149057918,-500.0,0.00012223,2]
[355435796,1741149057929,-500.0,0.00012223,2]
[355435797,1741149057941,-500.0,0.00012223,2]
[355435798,1741149057952,-3555.92,0.00012223,2]
[355435799,1741149057961,-500.0,0.00012223,2]
[355435800,1741149057970,-1063.37,0.00012223,2]
[355435801,1741149057979,-500.0,0.00012223,2]
[355435802,1741149057989,-500.0,0.00012223,2]
[355435803,1741149057998,-2199.66,0.00012223,2]
[355435804,1741149058008,-500.0,0.00012223,2]
[355435805,1741149058400,-4053.02,0.00012223,2]
[355435806,1741149058445,-857.82,0.00012223,2]
[355435807,1741149058466,-1364.58,0.00012223,2]
[355435808,1741149058476,-500.0,0.00012223,2]
[355435809,1741149058485,-11843.57,0.00012223,2]
[355435810,1741149058494,-4269.78,0.00012223,2]
[355435811,1741149058504,-500.0,0.00012223,2]
[355435812,1741149058513,-9534.95,0.00012223,2]
[355435813,1741149058523,-500.0,0.00012223,2]
[355435814,1741149058532,-500.0,0.00012223,2]
[355435815,1741149058542,-502.01895535,0.00012223,2]
[355435816,1741149058551,-500.0,0.00012223,2]
[355435817,1741149058560,-500.0,0.00012223,2]
[355435818,1741149058569,-500.0,0.00012223,2]
[355435819,1741149058579,-500.0,0.00012223,2]
[355435820,1741149058588,-5853.3,0.00012223,2]
[355435821,1741149058598,-1978.37,0.00012223,2]
[355435822,1741149058607,-905.18,0.00012223,2]
[355435823,1741149058616,-500.0,0.00012223,2]
[355435824,1741149058625,-3853.95,0.00012223,2]
[355435825,1741149058634,-12580.16,0.00012223,2]
[355435826,1741149058643,-943.82,0.00012223,2]
[355435827,1741149058653,-5517.56,0.00012223,2]
[355435828,1741149058662,-500.0,0.00012223,2]
[355435829,1741149058672,-1262.52,0.00012223,2]
[355435830,1741149058681,-500.0,0.00012223,2]
[355435831,1741149058690,-1973.89,0.00012223,2]
[355435832,1741149058699,-500.0,0.00012223,2]
[355435833,1741149058708,-500.0,0.00012223,2]
[355435834,1741149058718,-42567.12,0.00012223,2]
[355435835,1741149058726,-6457.78,0.00012223,2]
[355435836,1741149058736,-500.0,0.00012223,2]
[355435837,1741149058747,-900.34,0.00012223,2]
[355435838,1741149058756,-500.0,0.00012223,2]
[355435839,1741149058765,-500.0,0.00012223,2]
[355435840,1741149058775,-528.79792719,0.00012223,2]
[355435841,1741149058783,-500.0,0.00012223,2]
[355435842,1741149058793,-500.0,0.00012223,2]
[355435843,1741149058802,-501.28365196,0.00012223,2]
[355435844,1741149058811,-934.96,0.00012223,2]
[355435845,1741149058820,-500.0,0.00012223,2]
[355435846,1741149058829,-560.26515898,0.00012223,2]
[355435847,1741149058838,-500.0,0.00012223,2]
[355435848,1741149058848,-953.62,0.00012223,2]
[355435849,1741149058857,-3951.64,0.00012223,2]
[355435850,1741149058866,-500.0,0.00012223,2]
[355435851,1741149058875,-1446.47,0.00012223,2]
[355435852,1741149058884,-589.42544057,0.00012223,2]
[355435853,1741149058893,-502.35,0.00012223,2]
[355435854,1741149058902,-503.56045628,0.00012223,2]
[355435855,1741149058912,-3950.54,0.00012223,2]
[355435856,1741149058921,-500.0,0.00012223,2]
[355435857,1741149058930,-2500.12,0.00012223,2]
[355435858,1741149058939,-1783.19,0.00012223,2]
[355435859,1741149058948,-2391.56,0.00012223,2]
[355435860,1741149058957,-500.0,0.00012223,2]
[355435861,1741149058967,-500.0,0.00012223,2]
[355435862,1741149058977,-905.8,0.00012223,2]
[355435863,1741149058986,-500.0,0.00012223,2]
[355435864,1741149058995,-500.0,0.00012223,2]
[355435865,1741149059005,-500.0,0.00012223,2]
[355435866,1741149059015,-9425.26,0.00012223,2]
[355435867,1741149059024,-1499.46,0.00012223,2]
[355435868,1741149059033,-769.46,0.00012223,2]
[355435869,1741149059042,-500.0,0.00012223,2]
[355435870,1741149059052,-500.0,0.00012223,2]
[355435871,1741149059061,-6762.81,0.00012223,2]
[355435872,1741149059070,-500.0,0.00012223,2]
[355435873,1741149059081,-500.0,0.00012223,2]
[355435874,1741149059099,-500.0,0.00012223,2]
[355435875,1741149059118,-500.0,0.00012223,2]
[355435876,1741149059129,-44711.45,0.00012223,2]
[355435877,1741149059139,-500.0,0.00012223,2]
[355435878,1741149059149,-6154.14,0.00012223,2]
[355435879,1741149059160,-500.0,0.00012223,2]
[355435880,1741149059170,-936.25,0.00012223,2]
[355435881,1741149059180,-1244.9,0.00012223,2]
[355435882,1741149059189,-500.0,0.00012223,2]
[355435883,1741149059198,-1523.74,0.00012223,2]
[355435884,1741149059208,-7544.57,0.00012223,2]
[355435885,1741149059217,-7930.09693558,0.00012231,2]
[355435886,1741149059227,-7326.41845005,0.00012232,2]
[355435887,1741149059236,-302.16029713,0.00012247,2]
[355435888,1741149059245,-1000.0,0.00012254,2]
[355435889,1741149059256,-283.0,0.0001226,2]
[355435890,1741149059265,-150.0,0.00012267,2]
[355435891,1741149059275,-150.0,0.00012271,2]
[355435892,1741149059285,-317.8342353,0.00012271,2]
[355435893,1741149059295,-200.0,0.00012274,2]
[355435894,1741149059304,-150.0,0.00012279,2]
[355435895,1741149059313,-150.0,0.00012286,2]
[355435896,1741149059322,-473.87109546,0.00012287,2]
[355435897,1741149059332,-150.0,0.00012293,2]
[355435898,1741149059342,-2415.588,0.000123,2]
[355435899,1741149059353,-150.0,0.000123,2]
[355435900,1741149059363,-200.0,0.00012305,2]
[355435901,1741149059374,-152.377614,0.00012329,2]
[355435902,1741149059383,-151.0,0.00012329,2]
[355435903,1741149059393,-151.0,0.00012329,2]
[355435904,1741149059402,-153.14522,0.00012329,2]
[355435905,1741149059412,-273.455308,0.00012329,2]
[355435906,1741149059422,-155.282136,0.00012329,2]
[355435907,1741149059432,-151.973178,0.00012329,2]
[355435908,1741149059441,-1000.0,0.00012329,2]
[355435909,1741149059451,-1000.0,0.00012329,2]
[355435910,1741149059460,-1000.0,0.00012329,2]
[355435911,1741149059470,-1000.0,0.00012329,2]
[355435912,1741149059479,-1048.0,0.00012329,2]
[355435913,1741149059488,-151.0,0.00012329,2]
[355435914,1741149059498,-151.0,0.00012329,2]